bitfinex/quotes_BTCUSD_20250812
["timestamp","ask_amount","ask_price","bid_price","bid_amount"]
[1755014427979,0.16873004,119940.0,119930.0,0.22399866]
[1755014428192,0.16873004,119940.0,119930.0,0.22699866]
[1755014428193,0.16675004,119940.0,119930.0,0.22699866]
[1755014428417,0.16729004,119940.0,119930.0,0.22399866]
[1755014429044,0.16729004,119940.0,119930.0,0.08311866]
[1755014429045,0.17564194,119940.0,119930.0,0.08311866]
[1755014429261,0.73747371,119940.0,119930.0,0.08311866]
[1755014429510,0.73747371,119940.0,119930.0,0.22399866]
[1755014429932,0.76250671,119940.0,119930.0,0.22399866]
[1755014430554,0.20067494,119940.0,119930.0,0.22399866]
[1755014430694,0.20167494,119940.0,119930.0,0.22399866]
[1755014430921,0.20367494,119940.0,119930.0,0.22399866]
[1755014431238,0.76550671,119940.0,119930.0,0.14127541]
[1755014431628,0.20367494,119940.0,119930.0,0.14127541]
[1755014431824,0.20367494,119940.0,119930.0,0.14123541]
[1755014434273,0.20367494,119940.0,119930.0,0.00039541]
[1755014434514,0.20367494,119940.0,119930.0,0.14119541]
[1755014434726,0.20367494,119940.0,119930.0,0.00039541]
[1755014434942,0.20367494,119940.0,119930.0,0.14119541]
[1755014436155,0.20367494,119940.0,119930.0,0.00039541]
[1755014436395,0.20367494,119940.0,119930.0,0.14119541]
[1755014436841,0.20367494,119940.0,119930.0,0.00039541]
[1755014437282,0.20367494,119940.0,119930.0,0.14119541]
[1755014437863,0.84833114,119940.0,119930.0,0.14119541]
[1755014438085,0.76584671,119940.0,119930.0,0.14119541]
[1755014438519,0.76550671,119940.0,119930.0,0.14119541]
[1755014439799,0.20367494,119940.0,119930.0,0.14119541]
[1755014440005,0.76550671,119940.0,119930.0,0.14119541]
[1755014440215,0.20367494,119940.0,119930.0,0.14119541]
[1755014440433,0.76550671,119940.0,119930.0,0.14119541]
[1755014440640,0.20367494,119940.0,119930.0,0.14119541]
[1755014441067,0.20367494,119940.0,119930.0,0.14627541]
[1755014441945,0.20367494,119940.0,119930.0,0.14427541]
[1755014442200,0.20367494,119940.0,119930.0,0.14119541]
[1755014442201,0.78511679,119940.0,119930.0,0.14119541]
[1755014442416,0.76550671,119940.0,119930.0,0.14119541]
[1755014443540,0.78329573,119940.0,119930.0,0.00039541]
[1755014444233,0.94704573,119940.0,119930.0,0.00039541]
[1755014444926,0.80632573,119940.0,119930.0,0.00039541]
[1755014445178,0.88881016,119940.0,119930.0,0.00039541]
[1755014446288,0.32697839,119940.0,119930.0,0.00039541]
[1755014446505,0.88847016,119940.0,119930.0,0.00039541]
[1755014446722,0.88904898,119940.0,119930.0,0.00039541]
[1755014447166,0.32721721,119940.0,119930.0,0.00039541]
[1755014447405,0.32687721,119940.0,119930.0,0.00039541]
[1755014447617,0.86567898,119940.0,119930.0,0.00039541]
[1755014448070,0.94816341,119940.0,119930.0,0.00039541]
[1755014448765,0.38633164,119940.0,119930.0,0.00039541]
[1755014448995,0.94816341,119940.0,119930.0,0.00039541]
[1755014449686,0.30384721,119940.0,119930.0,0.00039541]
[1755014449920,0.78295573,119940.0,119930.0,0.00039541]
[1755014450127,0.78295573,119940.0,119930.0,0.00347541]
[1755014450756,0.22058396,119940.0,119930.0,0.00547541]
[1755014451203,0.20313494,119940.0,119930.0,0.07308581]
[1755014453145,0.20313494,119940.0,119930.0,0.00547541]
[1755014454606,0.76550671,119940.0,119930.0,0.14095541]
[1755014454827,0.20367494,119940.0,119930.0,0.14095541]
[1755014455037,0.20367494,119940.0,119930.0,0.14403541]
[1755014455185,0.20367494,119940.0,119930.0,0.14603541]
[1755014458239,0.76550671,119940.0,119930.0,0.00039541]
[1755014458409,0.84799114,119940.0,119930.0,0.14091541]
[1755014458628,0.76550671,119940.0,119930.0,0.14091541]
[1755014458826,0.78295573,119940.0,119930.0,0.00039541]
[1755014459027,0.92377573,119940.0,119930.0,0.00039541]
[1755014459834,0.92343573,119940.0,119930.0,0.00039541]
[1755014460279,0.36160396,119940.0,119930.0,0.00039541]
[1755014460480,0.22112396,119940.0,119930.0,0.00039541]
[1755014460777,0.22112396,119940.0,119930.0,0.00347541]
[1755014460994,0.78241573,119940.0,119930.0,0.00547541]
[1755014461621,0.78295573,119940.0,119930.0,0.00547541]
[1755014462050,0.78295573,119940.0,119930.0,0.00039541]
[1755014462535,0.8261152,119940.0,119930.0,0.00039541]
[1755014463198,0.78295573,119940.0,119930.0,0.00039541]
[1755014463898,0.22112396,119940.0,119930.0,0.00039541]
[1755014464112,0.78295573,119940.0,119930.0,0.00039541]
[1755014464329,0.78329573,119940.0,119930.0,0.00039541]
[1755014464950,0.78295573,119940.0,119930.0,0.00039541]
[1755014465145,0.86544016,119940.0,119930.0,0.00039541]
[1755014465361,0.86578016,119940.0,119930.0,0.00039541]
[1755014465610,0.16680567,119900.0,119890.0,0.72944217]
[1755014465801,0.16680567,119900.0,119890.0,0.32568199]
[1755014466211,0.16680567,119900.0,119890.0,0.32868199]
[1755014466429,0.216855,119900.0,119890.0,0.32868199]
[1755014467058,0.216855,119900.0,119890.0,0.33068199]
[1755014467266,0.216855,119900.0,119890.0,0.32868199]
[1755014467730,0.220855,119900.0,119890.0,0.18828199]
[1755014467923,0.220855,119900.0,119890.0,0.32864199]
[1755014472239,0.220855,119900.0,119890.0,0.89047376]
[1755014472670,0.004,119900.0,119890.0,1.05729334]
[1755014472877,0.00075,119900.0,119890.0,1.12490374]
[1755014473079,0.20847544,119940.0,119920.0,0.16677496]
[1755014473080,0.025036,119940.0,119920.0,0.16677496]
[1755014473284,0.07722851,119950.0,119930.0,0.95666896]
[1755014473285,0.08570677,119950.0,119930.0,0.95666896]
[1755014473495,0.19175195,119960.0,119940.0,0.24152917]
[1755014473691,0.025029,119960.0,119950.0,0.95664116]
[1755014473905,0.16670834,119970.0,119960.0,0.16672216]
[1755014474124,0.17506803,119980.0,119960.0,0.95362637]
[1755014474354,0.19996464,119980.0,119970.0,0.08572325]
[1755014474553,0.22498964,119980.0,119970.0,0.08779325]
[1755014474840,0.23330996,119980.0,119970.0,0.08779325]
[1755014475048,0.20828496,119980.0,119970.0,0.08779325]
[1755014475509,0.21023496,119980.0,119970.0,0.08479325]
[1755014475733,0.18533835,119980.0,119970.0,0.08272325]
[1755014476137,0.18533835,119980.0,119970.0,0.08479325]
[1755014476392,0.18533835,119980.0,119970.0,0.08579325]
[1755014476609,0.17697916,119980.0,119970.0,0.08579325]
[1755014476823,0.17697916,119980.0,119970.0,0.08479325]
[1755014477246,0.18016916,119980.0,119970.0,0.08272325]
[1755014477464,0.18016916,119980.0,119970.0,0.08672325]
[1755014477700,0.18016916,119980.0,119970.0,0.08272325]
[1755014478134,0.18016916,119980.0,119970.0,0.08472325]
[1755014478780,0.18016916,119980.0,119970.0,0.002]
[1755014479033,0.18016916,119980.0,119970.0,0.14216]
[1755014479280,0.18016916,119980.0,119970.0,0.002]
[1755014479499,0.20520833,119980.0,119970.0,0.002]
[1755014480158,0.16670834,119970.0,119960.0,0.14064874]
[1755014480340,0.16865834,119970.0,119960.0,0.22544199]
[1755014480596,0.17184834,119970.0,119960.0,0.22337199]
[1755014481022,0.71909385,119970.0,119960.0,0.00048874]
[1755014481244,0.73654287,119970.0,119960.0,0.00048874]
[1755014481465,0.81926612,119970.0,119960.0,0.00048874]
[1755014481683,0.18929736,119970.0,119960.0,0.00048874]
[1755014482126,0.18929736,119970.0,119960.0,0.00148874]
[1755014482343,0.27178179,119970.0,119960.0,0.00148874]
[1755014482818,0.8190273,119970.0,119960.0,0.00148874]
[1755014483246,0.8210273,119970.0,119960.0,0.00148874]
[1755014483459,0.8210273,119970.0,119960.0,0.00048874]
[1755014483672,0.90375055,119970.0,119960.0,0.00048874]
[1755014484087,0.90575055,119970.0,119960.0,0.00048874]
[1755014485786,0.90575055,119970.0,119960.0,1e-08]
[1755014485999,0.92946055,119970.0,119960.0,1e-08]
[1755014486430,0.38221504,119970.0,119960.0,1e-08]
[1755014486931,0.92946055,119970.0,119960.0,1e-08]
[1755014488960,0.38221504,119970.0,119960.0,1e-08]
[1755014489141,0.92946055,119970.0,119960.0,1e-08]
[1755014489551,0.90575055,119970.0,119960.0,1e-08]
[1755014490227,0.35850504,119970.0,119960.0,1e-08]
[1755014490452,0.90575055,119970.0,119960.0,1e-08]
[1755014491865,0.93078455,119970.0,119960.0,1e-08]
[1755014492306,0.38353904,119970.0,119960.0,1e-08]
[1755014492531,0.93078455,119970.0,119960.0,1e-08]
[1755014494036,1.01856455,119970.0,119960.0,1e-08]
[1755014494320,0.93078455,119970.0,119960.0,1e-08]
[1755014494823,0.38353904,119970.0,119960.0,1e-08]
[1755014495043,0.93078455,119970.0,119960.0,1e-08]
[1755014495459,0.38353904,119970.0,119960.0,1e-08]
[1755014495662,0.93078455,119970.0,119960.0,1e-08]
[1755014496311,0.38353904,119970.0,119960.0,1e-08]
[1755014496528,0.93078455,119970.0,119960.0,1e-08]
[1755014497647,0.38353904,119970.0,119960.0,1e-08]
[1755014497865,0.93078455,119970.0,119960.0,1e-08]
[1755014498558,1.05803042,119970.0,119960.0,1e-08]
[1755014501112,0.51078491,119970.0,119960.0,1e-08]
[1755014501313,1.05803042,119970.0,119960.0,1e-08]
[1755014502691,0.51078491,119970.0,119960.0,1e-08]
[1755014502897,1.05803042,119970.0,119960.0,1e-08]
[1755014503829,1.15809042,119970.0,119960.0,1e-08]
[1755014504046,1.29781042,119970.0,119960.0,1e-08]
[1755014506250,0.32298821,119970.0,119960.0,0.00513001]
[1755014507462,0.32098821,119970.0,119960.0,0.15754768]
[1755014507710,0.31898821,119970.0,119960.0,0.15754768]
[1755014507948,0.29495421,119970.0,119960.0,0.15754768]
[1755014508202,0.29495421,119970.0,119960.0,0.32426992]
[1755014508442,0.29495421,119970.0,119960.0,0.15546366]
[1755014509177,0.12724587,119970.0,119960.0,0.87243141]
[1755014509898,0.12724587,119970.0,119960.0,0.87343141]
[1755014510112,0.29395421,119970.0,119960.0,0.3261859]
[1755014510320,0.12724587,119970.0,119960.0,0.3231859]
[1755014510778,0.12724587,119970.0,119960.0,0.3261859]
[1755014510995,0.12724587,119970.0,119960.0,0.3251859]
[1755014511214,0.12724587,119970.0,119960.0,0.3261859]
[1755014511645,0.29395421,119970.0,119960.0,0.3261859]
[1755014512033,0.12724587,119970.0,119960.0,0.3261859]
[1755014513141,0.29395421,119970.0,119960.0,0.2585755]
[1755014515543,0.12724587,119970.0,119960.0,0.2585755]
[1755014518196,0.12724587,119970.0,119960.0,0.80582101]
[1755014520408,0.12724587,119970.0,119960.0,0.2585755]
[1755014521840,0.12724587,119970.0,119960.0,0.80582101]
[1755014527176,0.12724587,119970.0,119960.0,0.80482101]
[1755014527396,0.12724587,119970.0,119960.0,0.80282101]
[1755014527815,0.12724587,119970.0,119960.0,0.80182101]
[1755014528024,0.12724587,119970.0,119960.0,0.80482101]
[1755014528911,0.12724587,119970.0,119960.0,0.80582101]
[1755014529561,0.12724587,119970.0,119960.0,0.2610955]
[1755014529773,0.12724587,119970.0,119960.0,0.80834101]
[1755014530225,0.23724587,119970.0,119960.0,0.80834101]
[1755014530900,0.23724587,119970.0,119960.0,1.38156802]
[1755014531136,0.12724587,119970.0,119960.0,1.38156802]
[1755014531361,0.12724587,119970.0,119960.0,0.2610955]
[1755014531587,0.12724587,119970.0,119960.0,1.38156802]
[1755014531873,0.12724587,119970.0,119960.0,0.2610955]
[1755014532129,0.12724587,119970.0,119960.0,1.38156802]
[1755014532334,0.01749661,119990.0,119980.0,0.56669444]
[1755014532592,0.01749661,119990.0,119980.0,0.18620346]
[1755014532806,0.01749661,119990.0,119980.0,0.8681507]
[1755014533041,0.01749661,119990.0,119980.0,0.88880972]
[1755014533693,0.01749661,119990.0,119980.0,0.97153297]
[1755014533917,0.00646274,119990.0,119980.0,1.28911501]
[1755014534133,0.00646274,119990.0,119980.0,0.29183835]
[1755014534344,0.00646274,119990.0,119980.0,0.95608395]
[1755014534603,0.00646274,119990.0,119980.0,0.39784769]
[1755014534808,0.00646274,119990.0,119980.0,0.94486907]
[1755014539731,0.11646274,119990.0,119980.0,0.94486907]
[1755014541755,0.00646274,119990.0,119980.0,0.94486907]
[1755014542584,0.00646274,119990.0,119980.0,0.96231809]
[1755014543000,0.00646274,119990.0,119980.0,1.16231809]
[1755014543224,0.00646274,119990.0,119980.0,1.18732709]
[1755014543437,1e-08,119990.0,119980.0,1.21232709]
[1755014544495,1e-08,119990.0,119980.0,1.23743628]
[1755014545024,1e-08,119990.0,119980.0,0.6654149]
[1755014545274,1e-08,119990.0,119980.0,0.98742728]
[1755014547306,1e-08,119990.0,119980.0,0.4404059]
[1755014547518,1e-08,119990.0,119980.0,0.98742728]
[1755014548573,1e-08,119990.0,119980.0,2.18585528]
[1755014548778,1e-08,119990.0,119980.0,1.89472528]
[1755014548977,1e-08,119990.0,119980.0,1.91739665]
[1755014549405,1e-08,119990.0,119980.0,1.81942265]
[1755014549605,1e-08,119990.0,119980.0,1.47304965]
[1755014550006,1e-08,119990.0,119980.0,1.07367528]
[1755014550215,1e-08,119990.0,119980.0,1.01218728]
[1755014550389,1e-08,119990.0,119980.0,1.11227228]
[1755014550591,1e-08,119990.0,119980.0,1.21218728]
[1755014550792,1e-08,119990.0,119980.0,1.07326728]
[1755014550995,1e-08,119990.0,119980.0,1.21214728]
[1755014551843,1e-08,119990.0,119980.0,0.6901349]
[1755014551998,1e-08,119990.0,119980.0,1.23711628]
[1755014552413,1e-08,119990.0,119980.0,0.4980359]
[1755014552637,0.00204001,119990.0,119980.0,0.6368759]
[1755014552851,0.00204001,119990.0,119980.0,1.18389728]
[1755014553074,1e-08,119990.0,119980.0,1.04505728]
[1755014553289,1e-08,119990.0,119980.0,1.18389728]
[1755014553715,1e-08,119990.0,119980.0,1.04505728]
[1755014553919,1e-08,119990.0,119980.0,1.18389728]
[1755014555408,0.11000001,119990.0,119980.0,1.18389728]
[1755014555659,0.11000001,119990.0,119980.0,1.38385728]
[1755014555868,0.11000001,119990.0,119980.0,1.38682728]
[1755014557816,1e-08,119990.0,119980.0,1.38682728]
[1755014559837,1e-08,119990.0,119980.0,1.24802728]
[1755014560051,1e-08,119990.0,119980.0,1.38678728]
[1755014560948,1e-08,119990.0,119980.0,1.59188728]
[1755014561175,1e-08,119990.0,119980.0,1.61455865]
[1755014562870,1e-08,119990.0,119980.0,1.47579865]
[1755014563083,1e-08,119990.0,119980.0,1.61451865]
[1755014564416,1e-08,119990.0,119980.0,1.63952665]
[1755014564782,1e-08,119990.0,119980.0,0.95378527]
[1755014564996,1e-08,119990.0,119980.0,1.63952665]
[1755014566313,1e-08,119990.0,119980.0,1.50080665]
[1755014566527,1e-08,119990.0,119980.0,1.63948665]
[1755014566737,1e-08,119990.0,119980.0,2.21215853]
[1755014567817,1e-08,119990.0,119980.0,1.09246527]
[1755014568026,1e-08,119990.0,119980.0,2.21215853]
[1755014568239,1e-08,119990.0,119980.0,1.6523119]
[1755014568458,1e-08,119990.0,119980.0,1.5136319]
[1755014568660,1e-08,119990.0,119980.0,1.6523119]
[1755014569520,1e-08,119990.0,119980.0,1.6522719]
[1755014569731,1e-08,119990.0,119980.0,1.62960053]
[1755014570181,1e-08,120000.0,119990.0,1.65382283]
[1755014570397,1e-08,120000.0,119990.0,1.79077408]
[1755014570611,1e-08,120000.0,119990.0,1.92941408]
[1755014570855,1e-08,120000.0,119990.0,1.95442108]
[1755014572162,1e-08,120000.0,119990.0,1.95742108]
[1755014572380,1e-08,120000.0,119990.0,1.39452445]
[1755014572817,1e-08,120000.0,119990.0,0.83667782]
[1755014573032,1e-08,120000.0,119990.0,1.95637108]
[1755014573249,1e-08,120000.0,119990.0,1.95938108]
[1755014573458,1e-08,120000.0,119990.0,0.83968782]
[1755014573671,1e-08,120000.0,119990.0,1.95938108]
[1755014574634,1e-08,120000.0,119990.0,0.83968782]
[1755014574816,1e-08,120000.0,119990.0,1.95938108]
[1755014576877,1e-08,120000.0,119990.0,0.83968782]
[1755014577085,1e-08,120000.0,119990.0,1.95934108]
[1755014577314,1e-08,120000.0,119990.0,1.95633108]
[1755014578710,0.00204001,120000.0,119990.0,1.95633108]
[1755014578926,0.00204001,120000.0,119990.0,1.81777108]
[1755014579132,1e-08,120000.0,119990.0,1.95930108]
[1755014582152,1e-08,120000.0,119990.0,1.95629108]
[1755014582405,1e-08,120000.0,119990.0,1.95930108]
[1755014583093,1e-08,120000.0,119990.0,1.82078108]
[1755014583312,1e-08,120000.0,119990.0,1.98426108]
[1755014583959,1e-08,120000.0,119990.0,1.98422108]
[1755014584166,1e-08,120000.0,119990.0,2.00689245]
[1755014584582,1e-08,120000.0,119990.0,0.88719919]
[1755014584797,1e-08,120000.0,119990.0,2.00689245]
[1755014585011,1e-08,120000.0,119990.0,0.88719919]
[1755014585197,1e-08,120000.0,119990.0,2.00689245]
[1755014585891,1e-08,120000.0,119990.0,1.86845245]
[1755014586226,1e-08,120000.0,119990.0,2.00689245]
[1755014586661,1e-08,120000.0,119990.0,2.15540439]
[1755014587474,1e-08,120000.0,119990.0,1.03571113]
[1755014587734,1e-08,120000.0,119990.0,2.15540439]
[1755014589290,1e-08,120000.0,119990.0,2.41976439]
[1755014589748,1e-08,120000.0,119990.0,1.30007113]
[1755014590021,1e-08,120000.0,119990.0,2.41976439]
[1755014591633,1e-08,120000.0,119990.0,2.28136439]
[1755014591836,0.00210001,120000.0,119990.0,2.39404302]
[1755014592039,0.1102,120040.0,120030.0,0.16662501]
[1755014592209,0.13519,120040.0,120030.0,0.9496377]
[1755014592412,0.13519,120040.0,120030.0,0.38770826]
[1755014592630,0.13833,120040.0,120030.0,0.38770826]
[1755014592853,0.13833,120040.0,120030.0,0.94755489]
[1755014593069,0.13833,120040.0,120030.0,0.80919489]
[1755014593286,0.13981924,120040.0,120030.0,0.94755489]
[1755014593513,0.13981924,120040.0,120030.0,0.38770826]
[1755014593715,0.13981924,120040.0,120030.0,0.94755489]
[1755014593931,0.14181924,120040.0,120030.0,0.94755489]
[1755014594425,0.14181924,120040.0,120030.0,0.38770826]
[1755014594851,0.14181924,120040.0,120030.0,0.94755489]
[1755014595116,0.14181924,120040.0,120030.0,0.38770826]
[1755014595545,0.14181924,120040.0,120030.0,0.94755489]
[1755014595961,0.14181924,120040.0,120030.0,0.38770826]
[1755014596188,0.14181924,120040.0,120030.0,0.94755489]
[1755014596878,0.14181924,120040.0,120030.0,0.80919489]
[1755014597096,0.14181924,120040.0,120030.0,0.94751489]
[1755014597526,0.14181924,120040.0,120030.0,0.38766826]
[1755014597779,0.14181924,120040.0,120030.0,0.24934826]
[1755014597993,0.14181924,120040.0,120030.0,0.38766826]
[1755014598201,0.14181924,120040.0,120030.0,0.94751489]
[1755014600033,0.11892924,120040.0,120030.0,0.80919489]
[1755014600237,0.11892924,120040.0,120030.0,0.94747489]
[1755014603516,0.11892924,120040.0,120030.0,0.80919489]
[1755014603744,0.00071857,120050.0,120030.0,1.54156054]
[1755014603966,0.00071857,120050.0,120040.0,1.50726763]
[1755014604171,0.00071857,120050.0,120040.0,1.51233763]
[1755014604420,0.11607242,120070.0,120050.0,0.53404627]
[1755014604641,0.1,120110.0,120090.0,0.4]
[1755014604871,7e-05,120150.0,120140.0,0.16290201]
[1755014605095,0.00531,120150.0,120140.0,0.19221869]
[1755014605514,0.0282,120150.0,120140.0,0.16647244]
[1755014605724,0.0282,120150.0,120140.0,0.24919569]
[1755014606158,7e-05,120150.0,120140.0,0.25137418]
[1755014606377,7e-05,120150.0,120140.0,0.96082291]
[1755014606604,0.00314,120170.0,120160.0,0.16643465]
[1755014606817,0.57167088,120170.0,120160.0,0.94932508]
[1755014607056,0.40524,120170.0,120160.0,0.2491579]
[1755014607275,0.40524,120170.0,120160.0,0.80900453]
[1755014607488,0.4021,120170.0,120160.0,0.3873579]
[1755014607698,0.4021,120170.0,120160.0,0.2542279]
[1755014607906,0.4021,120170.0,120160.0,0.22305325]
[1755014608125,0.40524,120170.0,120160.0,0.80901462]
[1755014608371,0.40524,120170.0,120160.0,0.22092325]
[1755014608586,0.57167088,120170.0,120160.0,0.08272325]
[1755014608800,1.14027919,120170.0,120160.0,0.08272325]
[1755014609019,0.59456088,120170.0,120160.0,0.22404325]
[1755014609499,0.59556088,120170.0,120160.0,0.08572325]
[1755014609713,0.57267088,120170.0,120160.0,0.22428325]
[1755014609926,0.57267088,120170.0,120160.0,0.22444325]
[1755014610352,0.57267088,120170.0,120160.0,0.22144325]
[1755014610611,0.57267088,120170.0,120160.0,0.62844156]
[1755014610813,0.4031,120170.0,120160.0,0.7980163]
[1755014611024,0.401,120170.0,120160.0,0.39299799]
[1755014611232,0.401,120170.0,120160.0,1.01511532]
[1755014611464,0.402,120170.0,120160.0,1.15407532]
[1755014611681,0.401,120170.0,120160.0,1.01511532]
[1755014612134,0.401,120170.0,120160.0,1.15411532]
[1755014612329,0.401,120170.0,120160.0,0.60839701]
[1755014612549,0.4,120170.0,120160.0,0.60847701]
[1755014612764,0.4,120170.0,120160.0,0.59102799]
[1755014612972,0.4,120170.0,120160.0,0.58808799]
[1755014613318,0.4,120170.0,120160.0,1.1338063]
[1755014613551,0.4,120170.0,120160.0,0.9976663]
[1755014613773,0.4,120170.0,120160.0,0.59394799]
[1755014613986,0.4,120170.0,120160.0,1.1396663]
[1755014614197,0.4,120170.0,120160.0,0.9976663]
[1755014614416,0.4,120170.0,120160.0,0.9996663]
[1755014614648,0.4,120170.0,120160.0,1.15611532]
[1755014615310,0.4,120170.0,120160.0,1.18108632]
[1755014616215,0.4,120170.0,120160.0,1.26308632]
[1755014616454,0.00314,120200.0,120190.0,0.16640319]
[1755014616679,0.0052,120200.0,120190.0,0.38800644]
[1755014616900,0.17158935,120200.0,120190.0,0.22160325]
[1755014617119,0.17158935,120200.0,120190.0,0.08272325]
[1755014617338,0.0052,120200.0,120190.0,0.24912644]
[1755014617551,0.0052,120200.0,120190.0,0.38808644]
[1755014617765,0.00254984,120200.0,120190.0,0.38808644]
[1755014618011,0.00354984,120200.0,120190.0,0.38808644]
[1755014618239,0.00554984,120200.0,120190.0,0.38808644]
[1755014618961,0.00554984,120200.0,120190.0,0.39022644]
[1755014619648,0.00354984,120200.0,120190.0,0.22382325]
[1755014619859,0.16993919,120200.0,120190.0,0.22196325]
[1755014620089,0.17207919,120200.0,120190.0,0.22296325]
[1755014620309,0.00568984,120200.0,120190.0,0.22396325]
[1755014620526,0.00254984,120200.0,120190.0,0.22396325]
[1755014620750,0.00254984,120200.0,120190.0,0.08472325]
[1755014620972,0.00048984,120200.0,120190.0,0.23329331]
[1755014621211,0.00048984,120200.0,120190.0,0.22913325]
[1755014621436,0.00048984,120200.0,120190.0,0.77485156]
[1755014621656,0.00048984,120200.0,120190.0,0.08997325]
[1755014621876,0.00048984,120200.0,120190.0,0.77901162]
[1755014622129,0.00048984,120200.0,120190.0,0.22913325]
[1755014622345,0.00048984,120200.0,120190.0,0.08997325]
[1755014622584,0.00048984,120200.0,120190.0,0.22909325]
[1755014623020,0.00048984,120200.0,120190.0,0.77481156]
[1755014623236,0.00048984,120200.0,120190.0,0.22909325]
[1755014623448,0.00048984,120200.0,120190.0,0.81954377]
[1755014623692,0.00048984,120200.0,120190.0,0.10742227]
[1755014624334,0.00254984,120200.0,120190.0,0.09102331]
[1755014624538,0.00048984,120200.0,120190.0,0.3996165]
[1755014624762,0.00048984,120200.0,120190.0,0.39545644]
[1755014625195,0.00048984,120200.0,120190.0,0.80209475]
[1755014625413,0.00048984,120200.0,120190.0,0.39549644]
[1755014626047,0.00048984,120200.0,120190.0,0.59549644]
[1755014626263,0.00048984,120200.0,120190.0,0.53637644]
[1755014626473,0.00048984,120200.0,120190.0,0.50909325]
[1755014626887,0.00048984,120200.0,120190.0,0.53637644]
[1755014627247,0.00048984,120200.0,120190.0,1.08209475]
[1755014627463,0.00048984,120200.0,120190.0,0.69290546]
[1755014627677,0.00048984,120200.0,120190.0,0.16997325]
[1755014628146,0.00048984,120200.0,120190.0,0.47589644]
[1755014628586,0.00048984,120200.0,120190.0,0.16997325]
[1755014628790,0.00048984,120200.0,120190.0,0.30949325]
[1755014629551,0.55140815,120200.0,120190.0,0.16472325]
[1755014629753,1.26351581,120200.0,120190.0,0.16472325]
[1755014630431,0.7177975,120200.0,120190.0,0.30416325]
[1755014630633,0.7177975,120200.0,120190.0,0.22316325]
[1755014630832,0.7177975,120200.0,120190.0,0.22216325]
[1755014631159,0.17207919,120200.0,120190.0,0.08272325]
[1755014631447,0.7177975,120200.0,120190.0,0.08272325]
[1755014631567,0.17207919,120200.0,120190.0,0.08272325]
[1755014631773,0.7177975,120200.0,120190.0,0.08272325]
[1755014631979,0.7177975,120200.0,120190.0,0.22316325]
[1755014632180,0.17207919,120200.0,120190.0,0.08272325]
[1755014632400,0.7177975,120200.0,120190.0,0.22316325]
[1755014632642,0.7177975,120200.0,120190.0,0.08272325]
[1755014632978,0.7177975,120200.0,120190.0,0.22356325]
[1755014633151,0.7177975,120200.0,120190.0,0.22360325]
[1755014633350,0.7177975,120200.0,120190.0,0.08272325]
[1755014633613,0.17207919,120200.0,120190.0,0.22356325]
[1755014634058,0.7177975,120200.0,120190.0,0.22356325]
[1755014634271,0.00568984,120200.0,120190.0,0.22356325]
[1755014634491,0.54826815,120200.0,120190.0,0.22356325]
[1755014634706,0.7177975,120200.0,120190.0,0.22356325]
[1755014634919,0.7177975,120200.0,120190.0,0.08272325]
[1755014635138,0.55140815,120200.0,120190.0,0.22348325]
[1755014635579,0.54826815,120200.0,120190.0,0.22562325]
[1755014635798,0.00048984,120200.0,120190.0,0.22562325]
[1755014636058,0.00048984,120200.0,120190.0,0.22869325]
[1755014636273,0.00254984,120200.0,120190.0,0.22412325]
[1755014636483,0.7177975,120200.0,120190.0,0.08272325]
[1755014636690,1.1177975,120200.0,120190.0,0.08272325]
[1755014636897,0.7177975,120200.0,120190.0,0.22424325]
[1755014637104,0.7177975,120200.0,120190.0,0.22428325]
[1755014637325,0.17984454,120200.0,120190.0,0.08372325]
[1755014637540,0.72556285,120200.0,120190.0,0.22624325]
[1755014638180,1.27128116,120200.0,120190.0,0.08472325]
[1755014638390,0.20590577,120200.0,120190.0,0.22776325]
[1755014638570,0.75162408,120200.0,120190.0,0.08472325]
[1755014639006,0.75162408,120200.0,120190.0,0.22768325]
[1755014639208,0.75162408,120200.0,120190.0,0.22564325]
[1755014639410,0.75362408,120200.0,120190.0,0.22564325]
[1755014639592,0.75362408,120200.0,120190.0,0.22664325]
[1755014639772,0.20590577,120200.0,120190.0,0.22664325]
[1755014639970,0.20890577,120200.0,120190.0,0.22564325]
[1755014640184,0.75462408,120200.0,120190.0,0.08272325]
[1755014640387,0.75662408,120200.0,120190.0,0.08272325]
[1755014640544,0.75662408,120200.0,120190.0,0.22548325]
[1755014640751,0.75662408,120200.0,120190.0,0.08272325]
[1755014640963,1.33771259,120200.0,120190.0,0.08272325]
[1755014641439,0.24627597,120200.0,120190.0,0.08272325]
[1755014641648,1.33771259,120200.0,120190.0,0.08272325]
[1755014641847,0.79199428,120200.0,120190.0,0.08272325]
[1755014642050,0.79199428,120200.0,120190.0,0.22568325]
[1755014642327,0.79199428,120200.0,120190.0,0.08272325]
[1755014642528,0.81742448,120200.0,120190.0,0.08272325]
[1755014642973,0.79136448,120200.0,120190.0,0.08272325]
[1755014643181,0.79136448,120200.0,120190.0,0.22556325]
[1755014643389,0.79136312,120200.0,120190.0,0.22556325]
[1755014643598,0.79136312,120200.0,120190.0,0.08272325]
[1755014643807,0.16643088,120170.0,120160.0,0.19984]
[1755014644025,0.16643088,120170.0,120160.0,0.08272325]
[1755014644026,0.71734919,120170.0,120160.0,0.08272325]
[1755014644439,0.73479821,120170.0,120160.0,0.22556325]
[1755014644646,0.73479821,120170.0,120160.0,0.08272325]
[1755014644867,0.74256943,120170.0,120160.0,0.08272325]
[1755014645293,0.74256943,120170.0,120160.0,0.22548325]
[1755014645494,0.73479821,120170.0,120160.0,0.22548325]
[1755014645703,0.73479821,120170.0,120160.0,0.22752325]
[1755014645915,0.73479821,120170.0,120160.0,0.22852325]
[1755014646118,0.73479821,120170.0,120160.0,0.22652325]
[1755014646315,0.73479821,120170.0,120160.0,0.22552325]
[1755014646558,0.73479821,120170.0,120160.0,0.08272325]
[1755014646763,0.16649457,120130.0,120110.0,0.0676104]
[1755014646961,0.71428847,120120.0,120090.0,0.2673304]
[1755014647144,0.16651455,120110.0,120100.0,0.14256]
[1755014647365,0.16651455,120110.0,120090.0,0.0706204]
[1755014647609,0.16652789,120100.0,120090.0,0.0706204]
[1755014647834,0.4,120100.0,120090.0,0.2101704]
[1755014648055,0.56652789,120100.0,120090.0,0.08272325]
[1755014648390,0.56652789,120100.0,120090.0,0.08277174]
[1755014648599,0.56652789,120100.0,120090.0,0.22529174]
[1755014648812,1.1154162,120100.0,120090.0,0.08277174]
[1755014649256,1.67858353,120100.0,120090.0,4.849e-05]
[1755014649469,1.70218353,120100.0,120090.0,4.849e-05]
[1755014649687,1.84462353,120100.0,120090.0,0.00204849]
[1755014649914,1.70218353,120100.0,120090.0,4.849e-05]
[1755014650132,1.92714796,120100.0,120090.0,4.849e-05]
[1755014650358,1.78466796,120100.0,120090.0,4.849e-05]
[1755014650780,1.92702796,120100.0,120090.0,4.849e-05]
[1755014650992,1.78466796,120100.0,120090.0,4.849e-05]
[1755014651264,0.71226007,120090.0,120080.0,0.1]